[Event "5th EKA IIFL Investment 2019"]
[Site "Mumbai"]
[Date "2020.01.03"]
[Round "5.24"]
[White "Manish Anto Cristiano F"]
[Black "Zysk, Robert"]
[Result "1-0"]
[ECO "B06"]
[WhiteElo "2280"]
[BlackElo "2403"]
[Annotator "ChessBase"]
[PlyCount "135"]
[EventDate "2019.12.30"]
[EventType "swiss"]
[EventCountry "IND"]
[SourceTitle "playchess.com"]
[Source "ChessBase"]
[SourceQuality "1"]
[TimeControl "40/5400+30:1800+30"]

1. e4 {[%emt 0:03:39]} g6 {[%emt 0:00:00]} 2. d4 {[%emt 0:01:29]} Bg7 {[%emt 0:00:00]} 3. Be3 {[%emt 0:00:59]} d6 {[%emt 0:02:46]} 4. Nc3 {[%emt 0:01:02]} b6 {[%emt 0:05:38]} 5. Qd2 {[%emt 0:01:46]} Bb7 {[%emt 0:00:34]} 6. O-O-O {[%emt 0:02:15]} Nd7 {[%emt 0:03:58]} 7. h4 {[%emt 0:01:45]} h6 {[%emt 0:04:05]} 8. h5 {[%emt 0:03:11]} g5 {[%emt 0:00:28]} 9. f4 {[%emt 0:00:36]} gxf4 {[%emt 0:10:25]} 10. Bxf4 {[%emt 0:00:11]} a6 {[%emt 0:01:26]} 11. Rh3 {[%emt 0:05:28]} e6 {[%emt 0:14:58]} 12. Rg3 {[%emt 0:03:20]} Bf8 {[%emt 0:02:34]} 13. e5 {[%emt 0:05:11]} d5 {[%emt 0:01:17]} 14. Bd3 {[%emt 0:10:30]} c5 {[%emt 0:05:42]} 15. dxc5 {[%emt 0:08:24]} Nxc5 {[%emt 0:01:54]} 16. Nf3 {[%emt 0:03:39]} Ne7 {[%emt 0:09:23]} 17. Nd4 {[%emt 0:01:52]} Nc6 {[%emt 0:00:23]} 18. Be2 {[%emt 0:12:33]} Nxd4 {[%emt 0:06:44]} 19. Qxd4 {[%emt 0:00:03]} Qc7 {[%emt 0:00:38]} 20. Kb1 {[%emt 0:02:45]} b5 {[%emt 0:01:07]} 21. a3 {[%emt 0:05:25]} Nd7 {[%emt 0:00:58]} 22. b4 {[%emt 0:02:11]} Qb6 {[%emt 0:06:24]} 23. Be3 {[%emt 0:01:18]} Qxd4 {[%emt 0:02:34]} 24. Bxd4 {[%emt 0:00:02]} Nb8 {[%emt 0:01:09]} 25. a4 {[%emt 0:02:30]} bxa4 {[%emt 0:03:34]} 26. Nxa4 {[%emt 0:00:03]} Nd7 {[%emt 0:00:24]} 27. b5 {[%emt 0:00:56]} Be7 {[%emt 0:01:18]} 28. Nb6 {[%emt 0:01:58]} Nxb6 {[%emt 0:00:36]} 29. Bxb6 {[%emt 0:00:02]} Bg5 {[%emt 0:01:14]} 30. Rf1 {[%emt 0:00:57]} axb5 {[%emt 0:07:12]} 31. Bxb5+ {[%emt 0:00:03]} Kf8 {[%emt 0:00:14]} 32. Bc5+ {[%emt 0:00:38]} Be7 {[%emt 0:02:41]} 33. Bxe7+ {[%emt 0:01:53]} Kxe7 {[%emt 0:00:06]} 34. Rg7 {[%emt 0:00:11]} Rhf8 {[%emt 0:00:47]} 35. Rf6 {[%emt 0:01:16]} Ba6 {[%emt 0:00:55]} 36. Bxa6 {[%emt 0:00:32]} Rxa6 {[%emt 0:00:07]} 37. Rxh6 {[%emt 0:00:05]} Ra4 {[%emt 0:00:33]} 38. Rf6 {[%emt 0:00:58]} Re4 {[%emt 0:00:35]} 39. h6 {[%emt 0:01:34]} Rxe5 {[%emt 0:01:07]} 40. Rf1 {[%emt 0:00:00]} Rh5 {[%emt 0:00:00]} 41. h7 {[%emt 0:01:32]} Rh2 {[%emt 0:18:54]} 42. g4 {[%emt 0:04:00]} d4 {[%emt 0:05:47]} 43. g5 {[%emt 0:03:52]} d3 {[%emt 0:00:29]} 44. cxd3 {[%emt 0:03:49]} Rb8+ {[%emt 0:06:41]} 45. Kc1 {[%emt 0:00:01]} Rc8+ {[%emt 0:00:20]} 46. Kd1 {[%emt 0:00:51]} Kd6 {[%emt 0:00:26]} 47. Rgxf7 {[%emt 0:07:57]} Rcc2 {[%emt 0:01:17]} 48. Rh1 {[%emt 0:06:07]} Rcd2+ {[%emt 0:00:51]} 49. Ke1 {[%emt 0:00:18]} Rde2+ {[%emt 0:00:03]} 50. Kf1 {[%emt 0:01:01]} Ref2+ {[%emt 0:00:08]} 51. Rxf2 {[%emt 0:00:06]} Rxh1+ {[%emt 0:00:02]} 52. Kg2 {[%emt 0:00:22]} Rxh7 {[%emt 0:00:02]} 53. Kg3 {[%emt 0:00:17]} e5 {[%emt 0:02:44]} 54. Kg4 {[%emt 0:00:12]} Ke6 {[%emt 0:00:36]} 55. g6 {[%emt 0:01:16]} Rh1 {[%emt 0:00:50]} 56. Rf3 {[%emt 0:00:12]} Rg1+ {[%emt 0:01:02]} 57. Kh5 {[%emt 0:00:07]} Rh1+ {[%emt 0:00:08]} 58. Kg5 {[%emt 0:00:09]} Rg1+ {[%emt 0:00:13]} 59. Kh6 {[%emt 0:00:07]} Rh1+ {[%emt 0:00:11]} 60. Kg7 {[%emt 0:00:06]} Ke7 {[%emt 0:00:50]} 61. Kg8 {[%emt 0:01:50]} Rh6 {[%emt 0:00:52]} 62. g7 {[%emt 0:00:16]} Rh5 {[%emt 0:00:30]} 63. Rf7+ {[%emt 0:01:22]} Ke8 {[%emt 0:00:19]} 64. Ra7 {[%emt 0:00:46]} Rh3 {[%emt 0:00:51]} 65. Ra5 {[%emt 0:01:04]} Ke7 {[%emt 0:01:05]} 66. Rxe5+ {[%emt 0:03:11]} Kf6 {[%emt 0:00:05]} 67. Re8 {[%emt 0:04:05]} Rxd3 {[%emt 0:00:19]} 68. Kf8 {[%emt 0:00:07]} 1-0

[Event "5th EKA IIFL Investment 2019"]
[Site "Mumbai"]
[Date "2020.01.03"]
[Round "5.25"]
[White "Moksh Amit Doshi"]
[Black "Navalgund, Niranjan"]
[Result "1-0"]
[ECO "D33"]
[WhiteElo "2399"]
[BlackElo "2231"]
[Annotator "ChessBase"]
[PlyCount "89"]
[EventDate "2019.12.30"]
[EventType "swiss"]
[EventCountry "IND"]
[SourceTitle "playchess.com"]
[Source "ChessBase"]
[SourceQuality "1"]
[TimeControl "40/5400+30:1800+30"]

1. d4 {[%emt 0:00:03]} d5 {[%emt 0:00:00]} 2. c4 {[%emt 0:00:08]} e6 {[%emt 0:00:00]} 3. Nf3 {[%emt 0:01:37]} Nf6 {[%emt 0:00:05]} 4. Nc3 {[%emt 0:00:32]} c5 {[%emt 0:00:16]} 5. cxd5 {[%emt 0:00:44]} exd5 {[%emt 0:00:03]} 6. g3 {[%emt 0:00:21]} Nc6 {[%emt 0:00:09]} 7. Bg2 {[%emt 0:00:06]} cxd4 {[%emt 0:00:07]} 8. Nxd4 {[%emt 0:00:05]} Bc5 {[%emt 0:00:04]} 9. Nb3 {[%emt 0:02:09]} Bb6 {[%emt 0:00:11]} 10. O-O {[%emt 0:01:00]} d4 {[%emt 0:02:00]} 11. Na4 {[%emt 0:02:15]} O-O {[%emt 0:00:52]} 12. Bg5 {[%emt 0:08:03]} Re8 {[%emt 0:06:27]} 13. Nxb6 {[%emt 0:04:07]} axb6 {[%emt 0:02:24]} 14. Bxc6 {[%emt 0:00:17]} bxc6 {[%emt 0:00:05]} 15. Nxd4 {[%emt 0:01:01]} Bh3 {[%emt 0:27:51]} 16. Re1 {[%emt 0:02:47]} h6 {[%emt 0:08:36]} 17. Be3 {[%emt 0:25:53]} Rxe3 {[%emt 0:16:52]} 18. fxe3 {[%emt 0:00:12]} Qe8 {[%emt 0:09:58]} 19. Qb3 {[%emt 0:03:36]} Ng4 {[%emt 0:01:01]} 20. Rac1 {[%emt 0:02:42]} c5 {[%emt 0:10:55]} 21. Nf3 {[%emt 0:00:29]} Rxa2 {[%emt 0:00:20]} 22. Rc3 {[%emt 0:01:03]} Ra6 {[%emt 0:02:57]} 23. Rd1 {[%emt 0:02:06]} Qa8 {[%emt 0:01:09]} 24. Rcd3 {[%emt 0:01:28]} Ra1 {[%emt 0:01:14]} 25. Rxa1 {[%emt 0:00:42]} Qxa1+ {[%emt 0:00:01]} 26. Rd1 {[%emt 0:00:09]} Qa5 {[%emt 0:01:02]} 27. Qd5 {[%emt 0:06:16]} Nxe3 {[%emt 0:02:49]} 28. Qd8+ {[%emt 0:02:20]} Kh7 {[%emt 0:00:02]} 29. Qd3+ {[%emt 0:00:10]} Nf5 {[%emt 0:00:01]} 30. Qe4 {[%emt 0:02:22]} g6 {[%emt 0:02:13]} 31. Qe8 {[%emt 0:02:29]} Qa2 {[%emt 0:00:43]} 32. Kf2 {[%emt 0:02:05]} Ng7 {[%emt 0:00:01]} 33. Qf8 {[%emt 0:00:24]} g5 {[%emt 0:00:56]} 34. Ne5 {[%emt 0:07:03]} Qxb2 {[%emt 0:00:55]} 35. Qb8 {[%emt 0:01:41]} f6 {[%emt 0:02:15]} 36. Nc4 {[%emt 0:03:38]} Qb3 {[%emt 0:00:40]} 37. Ne3 {[%emt 0:00:06]} c4 {[%emt 0:01:21]} 38. Rd6 {[%emt 0:00:59]} Qb1 {[%emt 0:01:33]} 39. Rxf6 {[%emt 0:00:54]} g4 {[%emt 0:00:41]} 40. Qf4 {[%emt 0:00:00]} Qh1 {[%emt 0:00:00]} 41. Rxh6+ {[%emt 0:01:32]} Kg8 {[%emt 0:00:19]} 42. Qxc4+ {[%emt 0:00:04]} Kf8 {[%emt 0:00:09]} 43. Rf6+ {[%emt 0:00:40]} Ke7 {[%emt 0:00:29]} 44. Qf7+ {[%emt 0:00:36]} Kd8 {[%emt 0:00:02]} 45. Qxg7 {[%emt 0:00:24]} 1-0

[Event "5th EKA IIFL Investment 2019"]
[Site "Mumbai"]
[Date "2020.01.03"]
[Round "5.26"]
[White "Mithil, Ajgaonkar"]
[Black "Rajesh, V A V"]
[Result "0-1"]
[ECO "D76"]
[WhiteElo "2278"]
[BlackElo "2393"]
[Annotator "ChessBase"]
[PlyCount "114"]
[EventDate "2019.12.30"]
[EventType "swiss"]
[EventCountry "IND"]
[SourceTitle "playchess.com"]
[Source "ChessBase"]
[SourceQuality "1"]
[TimeControl "40/5400+30:1800+30"]

1. d4 {[%emt 0:00:00]} Nf6 {[%emt 0:00:00]} 2. Nf3 {[%emt 0:00:00]} g6 {[%emt 0:00:00]} 3. c4 {[%emt 0:00:00]} Bg7 {[%emt 0:00:00]} 4. g3 {[%emt 0:00:00]} O-O {[%emt 0:00:04]} 5. Bg2 {[%emt 0:00:00]} d5 {[%emt 0:00:42]} 6. cxd5 {[%emt 0:00:00]} Nxd5 {[%emt 0:00:09]} 7. O-O {[%emt 0:00:04]} Nb6 {[%emt 0:01:46]} 8. Nc3 {[%emt 0:00:06]} Nc6 {[%emt 0:00:19]} 9. e3 {[%emt 0:00:05]} Re8 {[%emt 0:00:46]} 10. d5 {[%emt 0:01:28]} Na5 {[%emt 0:02:26]} 11. Nd4 {[%emt 0:00:17]} Bd7 {[%emt 0:02:50]} 12. Re1 {[%emt 0:08:45]} c5 {[%emt 0:02:24]} 13. Nb3 {[%emt 0:07:44]} Na4 {[%emt 0:11:29]} 14. Nxa4 {[%emt 0:24:14]} Bxa4 {[%emt 0:00:10]} 15. Bd2 {[%emt 0:01:25]} Nc4 {[%emt 0:09:10]} 16. Bc3 {[%emt 0:01:14]} Bxc3 {[%emt 0:04:34]} 17. bxc3 {[%emt 0:00:02]} Qb6 {[%emt 0:04:34]} 18. Qe2 {[%emt 0:27:07]} Bb5 {[%emt 0:07:58]} 19. Nd2 {[%emt 0:03:42]} Nxd2 {[%emt 0:24:33]} 20. Qxd2 {[%emt 0:00:05]} Rad8 {[%emt 0:00:34]} 21. Rab1 {[%emt 0:13:39]} Qa5 {[%emt 0:00:52]} 22. Qb2 {[%emt 0:01:48]} Ba6 {[%emt 0:00:17]} 23. Rbd1 {[%emt 0:04:12]} Rd6 {[%emt 0:02:49]} 24. h4 {[%emt 0:03:43]} Rb6 {[%emt 0:01:50]} 25. Qc2 {[%emt 0:00:05]} Bc4 {[%emt 0:06:18]} 26. Qe4 {[%emt 0:00:43]} Qa4 {[%emt 0:00:22]} 27. h5 {[%emt 0:02:14]} Bb5 {[%emt 0:01:10]} 28. Qe5 {[%emt 0:00:43]} Bd7 {[%emt 0:02:45]} 29. e4 {[%emt 0:00:30]} f6 {[%emt 0:04:10]} 30. Qc7 {[%emt 0:00:33]} Rc8 {[%emt 0:01:14]} 31. Qf4 {[%emt 0:00:02]} g5 {[%emt 0:00:17]} 32. Qe3 {[%emt 0:00:27]} Bg4 {[%emt 0:01:46]} 33. Rd2 {[%emt 0:00:19]} e5 {[%emt 0:02:47]} 34. f4 {[%emt 0:01:02]} h6 {[%emt 0:00:27]} 35. fxe5 {[%emt 0:00:10]} fxe5 {[%emt 0:00:05]} 36. Rf1 {[%emt 0:00:18]} Qd7 {[%emt 0:00:56]} 37. Rdf2 {[%emt 0:00:11]} Bxh5 {[%emt 0:04:52]} 38. Rf5 {[%emt 0:01:24]} Qe7 {[%emt 0:00:59]} 39. Bh3 {[%emt 0:00:06]} Re8 {[%emt 0:00:28]} 40. c4 {[%emt 0:00:00]} Ra6 {[%emt 0:00:00]} 41. a3 {[%emt 0:07:53]} Kg7 {[%emt 0:07:45]} 42. Kh2 {[%emt 0:08:10]} Rb6 {[%emt 0:01:46]} 43. R5f2 {[%emt 0:04:27]} g4 {[%emt 0:02:20]} 44. Qe2 {[%emt 0:01:03]} Rg6 {[%emt 0:07:00]} 45. Rf5 {[%emt 0:00:14]} Qh4 {[%emt 0:03:26]} 46. Qd3 {[%emt 0:12:01]} Qxh3+ {[%emt 0:01:37]} 47. Kg1 {[%emt 0:00:01]} Rg5 {[%emt 0:01:16]} 48. R5f2 {[%emt 0:00:27]} Bg6 {[%emt 0:00:19]} 49. Rh2 {[%emt 0:00:08]} Bxe4 {[%emt 0:00:18]} 50. Qxe4 {[%emt 0:01:24]} Qxg3+ {[%emt 0:00:09]} 51. Rg2 {[%emt 0:00:14]} Qc3 {[%emt 0:00:21]} 52. Rd1 {[%emt 0:00:58]} Qf3 {[%emt 0:00:22]} 53. Qe1 {[%emt 0:00:20]} g3 {[%emt 0:03:03]} 54. d6 {[%emt 0:00:15]} Rf8 {[%emt 0:01:09]} 55. Rdd2 {[%emt 0:00:55]} Qf2+ {[%emt 0:00:37]} 56. Qxf2 {[%emt 0:00:32]} gxf2+ {[%emt 0:00:05]} 57. Rdxf2 {[%emt 0:00:04]} Rxf2 {[%emt 0:00:06]} 0-1

[Event "5th EKA IIFL Investment 2019"]
[Site "Mumbai"]
[Date "2020.01.03"]
[Round "5.27"]
[White "Manik, Mikulas"]
[Black "Nitish, Belurkar"]
[Result "1/2-1/2"]
[ECO "C11"]
[WhiteElo "2379"]
[BlackElo "2294"]
[Annotator "ChessBase"]
[PlyCount "101"]
[EventDate "2019.12.30"]
[EventType "swiss"]
[EventCountry "IND"]
[SourceTitle "playchess.com"]
[Source "ChessBase"]
[SourceQuality "1"]
[TimeControl "40/5400+30:1800+30"]

1. e4 {[%emt 0:00:00]} e6 {[%emt 0:00:00]} 2. d4 {[%emt 0:00:00]} d5 {[%emt 0:00:00]} 3. Nc3 {[%emt 0:00:00]} Nf6 {[%emt 0:00:00]} 4. e5 {[%emt 0:00:00]} Nfd7 {[%emt 0:00:00]} 5. f4 {[%emt 0:00:00]} c5 {[%emt 0:00:00]} 6. Nf3 {[%emt 0:00:00]} Nc6 {[%emt 0:00:07]} 7. Be3 {[%emt 0:00:00]} a6 {[%emt 0:00:04]} 8. Qd2 {[%emt 0:00:00]} b5 {[%emt 0:00:09]} 9. dxc5 {[%emt 0:00:11]} Bxc5 {[%emt 0:00:06]} 10. Bd3 {[%emt 0:01:16]} Qb6 {[%emt 0:02:18]} 11. Bf2 {[%emt 0:01:23]} Bb7 {[%emt 0:10:23]} 12. O-O {[%emt 0:01:03]} Rc8 {[%emt 0:00:10]} 13. Kh1 {[%emt 0:05:56]} Bxf2 {[%emt 0:03:18]} 14. Rxf2 {[%emt 0:01:12]} Nc5 {[%emt 0:00:49]} 15. Raf1 {[%emt 0:06:29]} b4 {[%emt 0:08:56]} 16. Nd1 {[%emt 0:02:07]} Ne7 {[%emt 0:17:33]} 17. Nd4 {[%emt 0:07:59]} Nxd3 {[%emt 0:05:52]} 18. Qxd3 {[%emt 0:00:06]} a5 {[%emt 0:00:13]} 19. Re1 {[%emt 0:00:23]} Ba6 {[%emt 0:01:11]} 20. Qd2 {[%emt 0:00:17]} Nc6 {[%emt 0:11:54]} 21. Nxc6 {[%emt 0:02:13]} Rxc6 {[%emt 0:00:33]} 22. f5 {[%emt 0:01:18]} d4 {[%emt 0:11:29]} 23. fxe6 {[%emt 0:13:39]} Rxe6 {[%emt 0:00:21]} 24. Rf4 {[%emt 0:00:23]} O-O {[%emt 0:01:00]} 25. Rxd4 {[%emt 0:07:08]} Rfe8 {[%emt 0:01:12]} 26. h3 {[%emt 0:02:16]} h6 {[%emt 0:05:02]} 27. Qf4 {[%emt 0:08:14]} Qc7 {[%emt 0:05:13]} 28. Kh2 {[%emt 0:03:16]} f6 {[%emt 0:03:11]} 29. Qg3 {[%emt 0:02:28]} Rxe5 {[%emt 0:01:38]} 30. Nf2 {[%emt 0:05:54]} R8e7 {[%emt 0:05:10]} 31. Ne4 {[%emt 0:03:33]} R5e6 {[%emt 0:00:29]} 32. Qxc7 {[%emt 0:00:24]} Rxc7 {[%emt 0:00:02]} 33. Rd8+ {[%emt 0:00:07]} Kh7 {[%emt 0:01:04]} 34. Ng5+ {[%emt 0:00:10]} hxg5 {[%emt 0:00:05]} 35. Rxe6 {[%emt 0:00:03]} Bc4 {[%emt 0:00:02]} 36. Ree8 {[%emt 0:06:37]} Bxa2 {[%emt 0:00:12]} 37. Rc8 {[%emt 0:00:22]} Rd7 {[%emt 0:00:01]} 38. Red8 {[%emt 0:01:54]} Re7 {[%emt 0:00:01]} 39. Rd2 {[%emt 0:01:00]} Bf7 {[%emt 0:02:38]} 40. Rc5 {[%emt 0:00:00]} a4 {[%emt 0:00:00]} 41. Ra5 {[%emt 0:09:36]} Be8 {[%emt 0:02:49]} 42. Kg3 {[%emt 0:01:46]} Re1 {[%emt 0:02:00]} 43. Ra8 {[%emt 0:00:44]} Bc6 {[%emt 0:00:08]} 44. Ra6 {[%emt 0:00:51]} Bb5 {[%emt 0:00:20]} 45. Ra5 {[%emt 0:01:36]} Be8 {[%emt 0:01:13]} 46. Rd8 {[%emt 0:09:23]} Bc6 {[%emt 0:01:07]} 47. Rc8 {[%emt 0:00:20]} Be4 {[%emt 0:05:45]} 48. Kf2 {[%emt 0:02:22]} Rb1 {[%emt 0:03:27]} 49. Rc4 {[%emt 0:00:57]} b3 {[%emt 0:00:17]} 50. Rxe4 {[%emt 0:02:39]} bxc2 {[%emt 0:00:09]} 51. Rc4 1/2-1/2

[Event "5th EKA IIFL Investment 2019"]
[Site "Mumbai"]
[Date "2020.01.03"]
[Round "5.28"]
[White "Konguvel, Ponnuswamy"]
[Black "Subhayan Kundu"]
[Result "0-1"]
[ECO "C11"]
[WhiteElo "2367"]
[BlackElo "2222"]
[Annotator "NA RC"]
[PlyCount "60"]
[EventDate "2019.12.30"]
[EventType "swiss"]
[EventCountry "IND"]
[SourceTitle "playchess.com"]
[Source "ChessBase"]
[SourceQuality "1"]
[TimeControl "40/5400+30:1800+30"]

1. e4 {[%emt 0:00:00]} e6 {[%emt 0:00:00]} 2. d4 {[%emt 0:00:00]} d5 {[%emt 0:00:01]} 3. Nc3 {[%emt 0:00:10]} Nf6 {[%emt 0:00:18]} 4. e5 {[%emt 0:00:16]} Nfd7 {[%emt 0:00:02]} 5. f4 {[%emt 0:00:14]} c5 {[%emt 0:00:08]} 6. Nf3 {[%emt 0:00:09]} Nc6 {[%emt 0:00:06]} 7. Be3 {[%emt 0:00:05]} Be7 {[%emt 0:00:11]} 8. Qd2 {[%emt 0:00:27]} O-O {[%emt 0:00:09]} 9. dxc5 {[%emt 0:00:37]} Qa5 {[%emt 0:01:37]} 10. O-O-O {[%emt 0:01:00]} b6 {[%emt 0:00:11]} 11. Bb5 {[%emt 0:01:11]} Nb4 {[%emt 0:00:06]} 12. a3 {[%emt 0:05:11]} bxc5 {[%emt 0:02:03]} 13. Kb1 {[%emt 0:03:43]} Nb6 {[%emt 0:00:29]} 14. f5 {[%emt 0:14:03]} exf5 {[%emt 0:00:14]} 15. Bg5 {[%emt 0:00:33]} Bxg5 {[%emt 0:02:06]} 16. Nxg5 {[%emt 0:02:15]} d4 {[%emt 0:05:52]} 17. axb4 {[%emt 0:46:40]} Qxb4 {[%emt 0:03:39]} 18. Nce4 {[%emt 0:02:53]} Qxb5 {[%emt 0:00:45]} 19. Nd6 {[%emt 0:00:30]} Qa6 {[%emt 0:00:40]} 20. Qf4 {[%emt 0:01:33]} Nd5 {[%emt 0:10:39]} 21. Qf3 {[%emt 0:02:44]} Be6 {[%emt 0:00:19]} 22. Nxf5 {[%emt 0:08:17]} Rab8 {[%emt 0:04:30]} 23. Rd3 {[%emt 0:06:02]} Nc3+ {[%emt 0:10:27]} 24. Kc1 {[%emt 0:00:03]} Qa1+ {[%emt 0:00:14]} 25. Kd2 {[%emt 0:00:01]} Qxh1 {[%emt 0:00:10]} 26. Ne7+ {[%emt 0:01:53]} Kh8 {[%emt 0:00:26]} 27. bxc3 {[%emt 0:01:29]} Rb1 {[%emt 0:00:15]} 28. Nxf7+ {[%emt 0:01:23]} Bxf7 {[%emt 0:00:15]} 29. Ng6+ {[%emt 0:00:30]} hxg6 {[%emt 0:00:05]} 30. Qh3+ {[%emt 0:00:04]} Kg8 {[%emt 0:00:02]} 0-1

[Event "5th EKA IIFL Investment 2019"]
[Site "Mumbai"]
[Date "2020.01.03"]
[Round "5.29"]
[White "Aleksandrov, Aleksej"]
[Black "Aaryan, Varshney"]
[Result "1-0"]
[ECO "D35"]
[WhiteElo "2592"]
[BlackElo "2269"]
[Annotator "RC"]
[PlyCount "123"]
[EventDate "2019.12.30"]
[EventType "swiss"]
[EventCountry "IND"]
[SourceTitle "playchess.com"]
[Source "ChessBase"]
[SourceQuality "1"]
[TimeControl "40/5400+30:1800+30"]

1. d4 {[%emt 0:00:00]} Nf6 {[%emt 0:00:00]} 2. c4 {[%emt 0:00:00]} e6 {[%emt 0:00:00]} 3. Nc3 {[%emt 0:00:00]} d5 {[%emt 0:00:09]} 4. cxd5 {[%emt 0:00:00]} exd5 {[%emt 0:00:14]} 5. Bg5 {[%emt 0:00:00]} Be7 {[%emt 0:00:23]} 6. e3 {[%emt 0:00:00]} c6 {[%emt 0:00:15]} 7. Bd3 {[%emt 0:00:00]} Nbd7 {[%emt 0:00:12]} 8. Qc2 {[%emt 0:00:33]} O-O {[%emt 0:00:19]} 9. Nge2 {[%emt 0:00:03]} h6 {[%emt 0:00:22]} 10. Bh4 {[%emt 0:00:04]} Re8 {[%emt 0:00:18]} 11. f3 {[%emt 0:00:04]} c5 {[%emt 0:02:02]} 12. O-O {[%emt 0:00:09]} b6 {[%emt 0:00:05]} 13. Kh1 {[%emt 0:07:54]} Bb7 {[%emt 0:02:29]} 14. Rad1 {[%emt 0:00:04]} a6 {[%emt 0:01:12]} 15. Bf5 {[%emt 0:00:33]} cxd4 {[%emt 0:10:39]} 16. Nxd4 {[%emt 0:00:11]} Ne5 {[%emt 0:00:20]} 17. Rfe1 {[%emt 0:05:17]} b5 {[%emt 0:04:07]} 18. Bh3 {[%emt 0:02:58]} g6 {[%emt 0:01:54]} 19. a3 {[%emt 0:12:19]} Qb6 {[%emt 0:03:42]} 20. Qf2 {[%emt 0:06:04]} Rad8 {[%emt 0:02:31]} 21. Nce2 {[%emt 0:02:44]} Nc6 {[%emt 0:11:27]} 22. Nxc6 {[%emt 0:02:34]} Bxc6 {[%emt 0:01:20]} 23. Nd4 {[%emt 0:00:58]} Bb7 {[%emt 0:00:36]} 24. Rc1 {[%emt 0:01:06]} b4 {[%emt 0:11:20]} 25. Qc2 {[%emt 0:03:07]} bxa3 {[%emt 0:03:24]} 26. bxa3 {[%emt 0:00:07]} Bc8 {[%emt 0:03:34]} 27. Qc6 {[%emt 0:03:57]} Qxc6 {[%emt 0:01:39]} 28. Nxc6 {[%emt 0:00:04]} g5 {[%emt 0:00:48]} 29. Bxc8 {[%emt 0:04:00]} gxh4 {[%emt 0:00:55]} 30. Nxd8 {[%emt 0:00:04]} Rxd8 {[%emt 0:00:29]} 31. Bxa6 {[%emt 0:01:44]} Bxa3 {[%emt 0:00:17]} 32. Rc8 {[%emt 0:00:08]} Rxc8 {[%emt 0:00:27]} 33. Bxc8 {[%emt 0:00:04]} Bc5 {[%emt 0:00:16]} 34. Kg1 {[%emt 0:00:06]} Kg7 {[%emt 0:00:25]} 35. Kf1 {[%emt 0:01:38]} Bb6 {[%emt 0:00:25]} 36. Ke2 {[%emt 0:07:31]} d4 {[%emt 0:02:02]} 37. e4 {[%emt 0:01:26]} Nh5 {[%emt 0:00:59]} 38. Rb1 {[%emt 0:03:48]} Bc7 {[%emt 0:00:35]} 39. Bg4 {[%emt 0:00:21]} Nf4+ {[%emt 0:00:19]} 40. Kf1 {[%emt 0:00:00]} h5 {[%emt 0:00:00]} 41. Bc8 {[%emt 0:00:49]} d3 {[%emt 0:01:03]} 42. Rd1 {[%emt 0:00:42]} Ba5 {[%emt 0:04:59]} 43. g3 {[%emt 0:01:23]} hxg3 {[%emt 0:00:04]} 44. hxg3 {[%emt 0:00:05]} Ne2 {[%emt 0:00:19]} 45. Kf2 {[%emt 0:04:07]} Bb6+ {[%emt 0:02:48]} 46. Kg2 {[%emt 0:00:11]} h4 {[%emt 0:00:27]} 47. Rxd3 {[%emt 0:02:02]} Nxg3 {[%emt 0:00:44]} 48. Kh3 {[%emt 0:00:42]} Bf2 {[%emt 0:00:18]} 49. Rd2 {[%emt 0:01:38]} Be1 {[%emt 0:00:13]} 50. Rd1 {[%emt 0:00:08]} Bf2 {[%emt 0:00:13]} 51. Kg4 {[%emt 0:00:53]} Kf6 {[%emt 0:00:58]} 52. Ba6 {[%emt 0:01:09]} Kg6 {[%emt 0:00:50]} 53. Rd6+ {[%emt 0:00:18]} Kg7 {[%emt 0:00:13]} 54. Bc4 {[%emt 0:00:16]} Nh1 {[%emt 0:00:30]} 55. Rd1 {[%emt 0:00:16]} Ng3 {[%emt 0:00:16]} 56. Rd7 {[%emt 0:00:50]} Nh1 {[%emt 0:00:14]} 57. Rxf7+ {[%emt 0:00:22]} Kg6 {[%emt 0:00:20]} 58. f4 {[%emt 0:00:27]} Bg3 {[%emt 0:00:11]} 59. e5 {[%emt 0:01:19]} Nf2+ {[%emt 0:00:11]} 60. Kf3 {[%emt 0:00:06]} h3 {[%emt 0:00:46]} 61. Kxg3 {[%emt 0:00:49]} h2 {[%emt 0:00:20]} 62. Kxh2 {[%emt 0:00:19]} 1-0

[Event "5th EKA IIFL Investment 2019"]
[Site "Mumbai"]
[Date "2020.01.03"]
[Round "5.32"]
[White "Rios, Cristhian Camilo"]
[Black "Luong, Phuong Hanh"]
[Result "1-0"]
[ECO "D96"]
[WhiteElo "2505"]
[BlackElo "2256"]
[Annotator "ChessBase"]
[PlyCount "95"]
[EventDate "2019.12.30"]
[EventType "swiss"]
[EventCountry "IND"]
[SourceTitle "playchess.com"]
[Source "ChessBase"]
[SourceQuality "1"]
[TimeControl "40/5400+30:1800+30"]

1. Nf3 {[%emt 0:00:00]} Nf6 {[%emt 0:00:41]} 2. c4 {[%emt 0:00:00]} g6 {[%emt 0:00:13]} 3. Nc3 {[%emt 0:00:04]} d5 {[%emt 0:00:09]} 4. d4 {[%emt 0:00:09]} Bg7 {[%emt 0:00:06]} 5. Qb3 {[%emt 0:00:07]} dxc4 {[%emt 0:00:07]} 6. Qxc4 {[%emt 0:00:07]} a6 {[%emt 0:00:10]} 7. Bf4 {[%emt 0:00:07]} c6 {[%emt 0:02:10]} 8. e4 {[%emt 0:01:11]} b5 {[%emt 0:03:51]} 9. Qb3 {[%emt 0:01:03]} O-O {[%emt 0:00:31]} 10. h3 {[%emt 0:04:08]} a5 {[%emt 0:03:17]} 11. Qc2 {[%emt 0:01:47]} Na6 {[%emt 0:02:21]} 12. Be2 {[%emt 0:05:16]} b4 {[%emt 0:00:57]} 13. Na4 {[%emt 0:02:16]} b3 {[%emt 0:02:21]} 14. Qxb3 {[%emt 0:02:51]} Nxe4 {[%emt 0:01:14]} 15. a3 {[%emt 0:02:01]} c5 {[%emt 0:05:48]} 16. d5 {[%emt 0:18:47]} Nc7 {[%emt 0:06:08]} 17. Rd1 {[%emt 0:01:04]} Nd6 {[%emt 0:14:24]} 18. Ne5 {[%emt 0:05:20]} Bxe5 {[%emt 0:04:19]} 19. Bxe5 {[%emt 0:01:08]} Ba6 {[%emt 0:01:10]} 20. Nxc5 {[%emt 0:07:48]} Bxe2 {[%emt 0:00:23]} 21. Kxe2 {[%emt 0:00:08]} Qc8 {[%emt 0:02:45]} 22. Rhe1 {[%emt 0:01:43]} a4 {[%emt 0:07:48]} 23. Qd3 {[%emt 0:00:16]} Ra5 {[%emt 0:00:54]} 24. Rc1 {[%emt 0:00:51]} Qa8 {[%emt 0:00:46]} 25. Red1 {[%emt 0:01:06]} Rd8 {[%emt 0:07:19]} 26. Kf1 {[%emt 0:00:42]} Nde8 {[%emt 0:00:34]} 27. d6 {[%emt 0:03:56]} Nxd6 {[%emt 0:06:26]} 28. Qc3 {[%emt 0:08:56]} Nce8 {[%emt 0:04:44]} 29. Qb4 {[%emt 0:11:06]} Rb5 {[%emt 0:05:23]} 30. Qh4 {[%emt 0:03:49]} Rc8 {[%emt 0:12:15]} 31. Bxd6 {[%emt 0:02:37]} exd6 {[%emt 0:01:00]} 32. Nd7 {[%emt 0:01:58]} Rxb2 {[%emt 0:04:58]} 33. Qe7 {[%emt 0:12:10]} Ng7 {[%emt 0:00:05]} 34. Nf6+ {[%emt 0:00:48]} Kh8 {[%emt 0:00:01]} 35. Rxc8+ {[%emt 0:00:10]} Qxc8 {[%emt 0:00:02]} 36. Qxf7 {[%emt 0:01:45]} Rb8 {[%emt 0:00:48]} 37. Qa7 {[%emt 0:00:42]} Qc4+ {[%emt 0:01:18]} 38. Kg1 {[%emt 0:00:07]} Rf8 {[%emt 0:00:07]} 39. Qe7 {[%emt 0:00:33]} Rc8 {[%emt 0:01:09]} 40. Qxd6 {[%emt 0:00:00]} Qf7 {[%emt 0:00:00]} 41. Qd7 {[%emt 0:08:00]} Qf8 {[%emt 0:00:54]} 42. Rd4 {[%emt 0:03:41]} Rb8 {[%emt 0:04:18]} 43. Qd6 {[%emt 0:04:23]} Nf5 {[%emt 0:04:22]} 44. Qc7 {[%emt 0:01:34]} Ne7 {[%emt 0:00:30]} 45. Rd7 {[%emt 0:02:34]} Rb1+ {[%emt 0:00:20]} 46. Kh2 {[%emt 0:00:11]} Qxf6 {[%emt 0:00:03]} 47. Rxe7 {[%emt 0:00:15]} Qf8 {[%emt 0:00:14]} 48. Qe5+ 1-0